bitfinex-derivatives/quotes_BNBF0:USTF0_20230901
["timestamp","ask_amount","ask_price","bid_price","bid_amount"]
[1693556712183,0.07655864,213.88,211.66,0.17157465]
[1693556712384,0.07655864,213.88,211.64,1.71095882]
[1693556713385,0.07655864,213.87,211.64,1.71095882]
[1693556715486,0.07655864,213.86,211.64,1.71095882]
[1693556716688,0.07655864,213.85,211.64,1.71095882]
[1693556717089,0.07655864,213.85,211.65,0.17157465]
[1693556717289,0.07655864,213.84,211.66,0.17157465]
[1693556717491,0.07655864,213.84,211.67,0.17157465]
[1693556717691,0.07655864,213.84,211.63,1.71095882]
[1693556720292,0.07655864,213.83,211.63,1.71095882]
[1693556721488,0.07655864,213.82,211.63,1.71095882]
[1693556723493,0.07655864,213.81,211.63,1.71095882]
[1693556723687,0.07655864,213.82,211.63,1.71095882]
[1693556724190,0.07655864,213.81,211.63,1.71095882]
[1693556726492,0.07655864,213.8,211.63,1.71095882]
[1693556728497,0.07655864,213.79,211.63,1.71095882]
[1693556728692,0.07655864,213.8,211.63,1.71095882]
[1693556728899,0.07655864,213.79,211.63,1.71095882]
[1693556731401,0.07655864,213.78,211.63,1.71095882]
[1693556733799,0.07655864,213.77,211.63,1.71095882]
[1693556735303,0.07655864,213.76,211.63,1.71095882]
[1693556735904,0.07655864,213.77,211.63,1.71095882]
[1693556736901,0.07655864,213.76,211.63,1.71095882]
[1693556738302,0.07655864,213.75,211.63,1.71095882]
[1693556739303,0.07655864,213.74,211.63,1.71095882]
[1693556739509,0.07655864,213.74,211.64,1.71095882]
[1693556740302,0.15311728,213.73,211.64,1.71095882]
[1693556740507,0.07655864,213.71,211.64,1.71095882]
[1693556741707,0.07655864,213.72,211.64,1.71095882]
[1693556742304,0.07655864,213.71,211.64,1.71095882]
[1693556742908,0.07655864,213.72,211.64,1.71095882]
[1693556745108,0.07655864,213.73,211.64,1.71095882]
[1693556746911,0.07655864,213.74,211.64,1.71095882]
[1693556748712,0.07655864,213.75,211.64,1.71095882]
[1693556748911,0.07655864,213.74,211.64,1.71095882]
[1693556750014,0.07655864,213.75,211.64,1.71095882]
[1693556751813,0.07655864,213.76,211.64,1.71095882]
[1693556752714,0.07655864,213.77,211.64,1.71095882]
[1693556754014,0.07655864,213.78,211.64,1.71095882]
[1693556754911,0.07655864,213.79,211.64,1.71095882]
[1693556755815,0.07655864,213.8,211.64,1.71095882]
[1693556756717,0.07655864,213.81,211.64,1.71095882]
[1693556757718,0.07655864,213.82,211.64,1.71095882]
[1693556758111,0.07655864,213.82,211.65,1.71095882]
[1693556758319,0.07655864,213.86,211.65,1.71095882]
[1693556758618,0.07655864,213.88,211.65,1.71095882]
[1693556758816,0.07655864,213.89,211.65,1.71095882]
[1693556759415,0.07655864,213.9,211.65,1.71095882]
[1693556759713,0.07655864,213.91,211.65,1.71095882]
[1693556761822,0.07655864,213.92,211.65,1.71095882]
[1693556762419,0.07655864,213.93,211.65,1.71095882]
[1693556762618,0.07655864,213.93,211.7,1.71095882]
[1693556763518,0.07655864,213.94,211.7,1.88253347]
[1693556763721,0.07655864,213.94,211.71,0.17157465]
[1693556763922,0.07655864,213.94,211.72,0.17157465]
[1693556764220,0.07655864,213.95,211.73,0.17157465]
[1693556764417,0.07655864,213.95,211.74,0.17157465]
[1693556764617,0.07655864,213.95,211.7,1.71095882]
[1693556766422,0.07655864,213.96,211.7,1.71095882]
[1693556766826,0.07655864,213.96,211.71,1.71095882]
[1693556767025,0.07655864,213.95,211.71,1.71095882]
[1693556767321,0.07655864,213.96,211.71,1.71095882]
[1693556767931,2.55195471,214.09,211.71,1.71095882]
[1693556768131,0.07641799,213.96,211.71,1.71095882]
[1693556770928,0.07641799,213.96,211.72,0.17157465]
[1693556771129,0.07641799,213.96,211.73,0.17157465]
[1693556771330,0.07641799,213.96,211.74,0.17157465]
[1693556771531,0.07641799,213.96,211.75,0.17157465]
[1693556771729,0.07641799,213.96,211.7,1.71095882]
[1693556772031,0.07641799,213.98,211.7,1.71095882]
[1693556772331,0.07641799,213.97,211.7,1.71095882]
[1693556772527,0.07641799,214.02,211.7,1.71095882]
[1693556773330,0.07641799,214.01,211.7,1.71095882]
[1693556774329,0.07641799,213.99,211.7,1.71095882]
[1693556774526,0.07641799,214.0,211.7,1.71095882]
[1693556774728,0.07641799,213.99,211.7,1.71095882]
[1693556774930,0.07641799,214.0,211.77,1.71095882]
[1693556775429,0.07641799,213.99,211.77,1.71095882]
[1693556776331,0.07641799,213.98,211.77,1.71095882]
[1693556776531,0.07641799,213.97,211.77,1.71095882]
[1693556777429,0.07641799,213.96,211.77,1.71095882]
[1693556778232,2.54726648,214.09,211.77,1.71095882]
[1693556778233,0.07641799,213.95,211.77,1.71095882]
[1693556779034,0.07641799,213.94,211.78,0.17157465]
[1693556779334,0.07641799,213.93,211.79,0.17157465]
[1693556779634,0.07641799,213.93,211.8,0.17157465]
[1693556779834,0.07641799,213.93,211.81,0.17157465]
[1693556780135,0.07641799,213.93,211.82,0.17157465]
[1693556780334,0.07641799,213.93,211.83,0.17157465]
[1693556780534,0.07641799,213.93,211.76,1.71095882]
[1693556781230,0.07641799,213.92,211.76,1.71095882]
[1693556782231,0.07641799,213.91,211.76,1.71095882]
[1693556783030,0.07641799,213.91,210.62,0.43415671]
[1693556783031,0.07641799,213.91,211.75,1.71095882]
[1693556783230,0.07641799,213.9,211.75,1.71095882]
[1693556784234,0.50945329,213.95,211.75,1.71095882]
[1693556784235,0.07641799,213.89,211.75,1.71095882]
[1693556786235,0.07641799,213.88,211.75,1.71095882]
[1693556787435,0.07641799,213.87,211.75,1.71095882]
[1693556788235,0.15283598,213.89,211.75,1.71095882]
[1693556788236,0.07641799,213.86,211.75,1.71095882]
[1693556789336,0.07641799,213.85,211.75,1.71095882]
[1693556790436,0.07641799,213.84,211.75,1.71095882]
[1693556791237,0.07641799,213.83,211.75,1.71095882]
[1693556791435,0.07641799,213.83,211.74,1.71095882]
[1693556792338,0.07641799,213.82,211.74,1.71095882]
[1693556792739,0.07641799,213.83,211.74,1.71095882]
[1693556793238,0.07641799,213.81,211.74,1.71095882]
[1693556795739,0.07641799,213.81,211.75,1.88253347]
[1693556795940,0.07641799,213.81,211.75,1.71095882]
[1693556796240,0.07641799,213.8,211.75,1.71095882]
[1693556796441,0.07641799,213.81,211.75,1.71095882]
[1693556796742,0.07641799,213.8,211.75,1.71095882]
[1693556796942,0.07641799,213.81,211.75,1.71095882]
[1693556797242,0.07641799,213.82,211.75,1.71095882]
[1693556798441,0.07641799,213.81,211.75,1.71095882]
[1693556799737,0.07641799,213.83,211.76,1.88253347]
[1693556799938,0.07641799,213.83,211.77,0.17157465]
[1693556800141,0.07641799,213.85,211.78,0.17157465]
[1693556800443,0.07641799,213.89,211.79,0.17157465]
[1693556800738,0.07641799,213.89,211.8,0.17157465]
[1693556800942,0.07641799,213.89,211.76,1.71095882]
[1693556801337,0.07641799,213.88,211.76,1.71095882]
[1693556802340,0.07641799,213.87,211.76,1.71095882]
[1693556802541,0.07641799,213.88,211.76,1.71095882]
[1693556804144,0.07641799,213.88,211.85,1.71095882]
[1693556807345,0.07641799,213.89,211.85,1.71095882]
[1693556807545,0.50945329,213.94,211.85,1.71095882]
[1693556807546,0.07641799,213.9,211.85,1.71095882]
[1693556808247,0.07641799,213.91,211.85,1.71095882]
[1693556808545,0.07641799,213.91,211.86,1.88253347]
[1693556808745,0.07641799,213.91,211.86,1.71095882]
[1693556810246,0.07641799,213.92,211.86,1.71095882]
[1693556814248,0.07641799,213.93,211.86,1.71095882]
[1693556819354,0.07641799,213.92,211.86,1.71095882]
[1693556823257,0.07641799,213.91,211.86,1.71095882]
[1693556825061,0.07641799,213.9,211.86,1.71095882]
[1693556825258,0.07641799,213.9,211.84,1.71095882]
[1693556826258,0.07641799,213.89,211.84,1.71095882]
[1693556826664,0.07641799,213.9,211.84,1.71095882]
[1693556829568,0.07641799,213.9,211.86,1.71095882]
[1693556833272,0.07641799,213.88,211.86,1.71095882]
[1693556834374,0.07641799,213.85,211.86,1.71095882]
[1693556838272,0.07641799,213.86,211.86,1.71095882]
[1693556840278,0.07641799,213.87,211.86,1.71095882]
[1693556842278,0.07641799,213.88,211.86,1.71095882]
[1693556842974,0.07641799,213.87,211.86,1.71095882]
[1693556843381,0.07641799,213.88,211.86,1.71095882]
[1693556844375,0.07641799,213.89,211.86,1.71095882]
[1693556845281,0.07641799,213.9,211.86,1.71095882]
[1693556845682,0.07641799,213.9,211.87,1.88253347]
[1693556845875,0.07641799,213.9,211.88,0.17157465]
[1693556846077,0.07641799,213.9,211.89,0.17157465]
[1693556846278,0.07641799,213.91,211.87,1.71095882]
[1693556847382,0.07641799,213.92,211.87,1.71095882]
[1693556848284,0.07641799,213.93,211.87,1.71095882]
[1693556849184,0.07641799,213.95,211.87,1.71095882]
[1693556849385,0.07641799,213.94,211.87,1.71095882]
[1693556850282,0.07641799,213.96,211.87,1.71095882]
[1693556851388,0.07641799,213.98,211.87,1.71095882]
[1693556851589,0.07641799,213.97,211.87,1.71095882]
[1693556852387,0.07641799,213.99,211.87,1.71095882]
[1693556853390,0.07641799,214.01,211.87,1.71095882]
[1693556854391,0.07641799,214.03,211.87,1.71095882]
[1693556855193,0.07641799,214.05,211.87,1.71095882]
[1693556856193,0.07641799,214.06,211.87,1.71095882]
[1693556856394,0.07641799,214.08,211.87,1.71095882]
[1693556858995,0.07641799,214.09,211.87,1.71095882]
[1693556859691,0.07641799,214.09,211.88,1.88253347]
[1693556859896,0.07641799,214.09,211.89,0.17157465]
[1693556860093,0.07641799,214.09,211.9,0.17157465]
[1693556860297,0.07641799,214.09,211.91,0.17157465]
[1693556860498,0.07641799,214.09,211.92,0.17157465]
[1693556860698,0.07641799,214.09,211.93,0.17157465]
[1693556860898,0.07641799,214.09,211.88,1.71095882]
[1693556860899,0.07641799,214.09,211.94,0.17157465]
[1693556861099,0.07641799,214.09,211.95,0.17157465]
[1693556861298,0.07641799,214.09,211.96,0.17157465]
[1693556861494,0.07641799,214.08,211.97,0.17157465]
[1693556861702,0.07641799,214.08,211.98,0.17157465]
[1693556861898,0.07641799,214.08,211.99,0.17157465]
[1693556862093,0.07641799,214.08,212.0,0.17157465]
[1693556862293,0.07641799,214.08,212.01,0.17157465]
[1693556862497,0.07641799,214.08,212.02,0.17157465]
[1693556862696,0.07641799,214.08,212.03,0.17157465]
[1693556862993,0.07641799,214.08,212.04,0.17157465]
[1693556863299,0.07641799,214.08,212.05,0.17157465]
[1693556863501,0.07641799,214.08,212.06,0.17157465]
[1693556863696,0.07641799,214.08,212.07,0.17157465]
[1693556863900,0.07641799,214.08,212.08,0.17157465]
[1693556864095,0.07641799,214.08,212.09,0.17157465]
[1693556864300,0.07641799,214.08,212.1,0.17157465]
[1693556864495,0.07641799,214.08,212.11,0.17157465]
[1693556864696,0.07641799,214.08,212.12,0.17157465]
[1693556864900,0.07641799,214.08,212.13,0.17157465]
[1693556865099,0.07641799,214.08,212.14,0.17157465]
[1693556865298,0.07641799,214.08,212.15,0.17157465]
[1693556865494,0.07641799,214.08,211.88,1.71095882]
[1693556865495,0.07641799,214.08,212.16,0.17157465]
[1693556865699,0.07641799,214.08,212.17,0.17157465]
[1693556865995,0.07641799,214.08,212.18,0.17157465]
[1693556866195,0.07641799,214.08,212.19,0.17157465]
[1693556866400,0.07641799,214.08,212.2,0.17157465]
[1693556866600,0.07641799,214.08,212.21,0.17157465]
[1693556866901,0.07641799,214.08,212.22,0.17157465]
[1693556867100,0.07641799,214.08,212.23,0.17157465]
[1693556867399,0.07641799,214.08,212.24,0.17157465]
[1693556867600,0.07641799,214.08,212.25,0.17157465]
[1693556867799,0.07641799,214.08,212.26,0.17157465]
[1693556868000,0.07641799,214.08,211.88,1.71095882]
[1693556875111,0.07641799,214.09,211.88,1.71095882]
[1693556875711,0.07641799,214.08,211.88,1.71095882]
[1693556879317,0.07641799,214.04,211.88,1.71095882]
[1693556879514,0.07641799,214.03,211.88,1.71095882]
[1693556881413,0.07641799,214.03,211.83,1.71095882]
[1693556882618,0.07641799,214.05,211.83,1.71095882]
[1693556884021,0.07641799,214.06,211.83,1.71095882]
[1693556884814,0.07641799,214.07,211.83,1.71095882]
[1693556885614,0.07641799,214.06,211.84,0.17157465]
[1693556885920,0.07641799,214.06,211.82,1.71095882]
[1693556885921,0.07641799,214.07,211.85,0.17157465]
[1693556886222,0.07641799,214.07,211.86,0.17157465]
[1693556886424,0.07641799,214.07,211.82,1.71095882]
[1693556887222,0.07641799,214.08,211.82,1.71095882]
[1693556887619,0.07641799,214.07,211.82,1.71095882]
[1693556887820,0.07641799,214.01,211.82,1.71095882]
[1693556888022,0.07641799,214.0,211.82,1.71095882]
[1693556888621,0.07641799,213.99,211.82,1.71095882]
[1693556894125,0.07641799,213.93,211.82,1.71095882]
[1693556895023,0.07641799,213.92,211.82,1.71095882]
[1693556895917,0.07641799,213.9,211.82,1.71095882]
[1693556896223,0.07641799,213.91,211.82,1.71095882]
[1693556897123,0.50945329,213.96,211.82,1.71095882]
[1693556897124,0.07641799,213.9,211.82,1.71095882]
[1693556898026,0.07641799,213.89,211.82,1.71095882]
[1693556899024,0.07641799,213.88,211.82,1.71095882]
[1693556900021,0.07641799,213.87,211.73,1.71095882]
[1693556901240,0.07641799,213.86,211.73,1.71095882]
[1693556903023,0.07641799,213.85,211.73,1.71095882]
[1693556904228,0.07641799,213.84,211.73,1.71095882]
[1693556905032,0.07641799,213.83,211.74,0.17157465]
[1693556905231,0.07641799,213.83,211.72,1.71095882]
[1693556905934,0.07641799,213.82,211.72,1.71095882]
[1693556906931,0.07641799,213.81,211.72,1.71095882]
[1693556908027,0.07641799,213.8,211.72,1.71095882]
[1693556908232,0.07641799,213.79,211.72,1.71095882]
[1693556908428,0.07641799,213.8,211.72,1.71095882]
[1693556909027,0.07641799,213.79,211.72,1.71095882]
[1693556910028,0.07641799,213.78,211.72,1.71095882]
[1693556910234,0.07641799,213.77,211.72,1.71095882]
[1693556911328,0.07641799,213.76,211.72,1.71095882]
[1693556912128,1.01890659,213.83,211.72,1.71095882]
[1693556912129,0.07641799,213.75,211.72,1.71095882]
[1693556913335,0.07641799,213.73,211.72,1.71095882]
[1693556914337,0.07641799,213.72,211.72,1.71095882]
[1693556915940,0.07641799,213.71,211.72,1.71095882]
[1693556919035,0.07641799,213.7,211.72,1.71095882]
[1693556919437,0.07641799,213.71,211.72,1.71095882]
[1693556920041,0.07641799,213.7,211.72,1.71095882]
[1693556921049,0.07641799,213.69,211.72,1.71095882]
[1693556921845,0.07641799,213.7,211.72,1.71095882]
[1693556922144,0.07641799,213.67,211.72,1.71095882]
[1693556922945,0.07641799,213.68,211.72,1.71095882]
[1693556924347,0.07641799,213.69,211.72,1.71095882]
[1693556924547,0.07641799,213.68,211.72,1.71095882]
[1693556924747,0.07641799,213.69,211.72,1.71095882]
[1693556924947,0.07641799,213.68,211.72,1.71095882]
[1693556925150,0.07641799,213.69,211.72,1.71095882]
[1693556926248,0.07641799,213.7,211.72,1.71095882]
[1693556926451,0.07641799,213.69,211.72,1.71095882]
[1693556926844,0.07641799,213.7,211.72,1.71095882]
[1693556928146,0.07641799,213.7,211.71,1.71095882]
[1693556929250,0.07641799,213.71,211.71,1.71095882]
[1693556930346,0.07641799,213.72,211.71,1.71095882]
[1693556931349,0.07641799,213.73,211.71,1.71095882]
[1693556932458,0.07641799,213.74,211.71,1.71095882]
[1693556932954,0.07641799,213.75,211.71,1.71095882]
[1693556933153,2.54726648,213.88,211.71,1.71095882]
[1693556933154,0.07641799,213.76,211.71,1.71095882]
[1693556934354,0.07641799,213.78,211.71,1.71095882]
[1693556935252,0.07641799,213.79,211.71,1.71095882]
[1693556936050,0.07641799,213.8,211.71,1.71095882]
[1693556936554,0.07641799,213.82,211.71,1.71095882]
[1693556936950,0.07641799,213.83,211.71,1.71095882]
[1693556938150,0.07641799,213.83,211.72,1.88253347]
[1693556938356,0.07641799,213.83,211.73,0.17157465]
[1693556938552,0.07641799,213.83,211.72,1.71095882]
[1693556942463,0.07641799,213.92,211.72,1.71095882]
[1693556942664,0.07641799,213.94,211.72,1.71095882]
[1693556943060,0.07641799,213.94,211.73,1.88253347]
[1693556943262,0.07641799,213.94,211.73,1.71095882]
[1693556944061,0.15283598,213.96,211.73,1.71095882]
[1693556944062,0.07641799,213.96,211.73,1.71095882]
[1693556944264,0.07641799,213.95,211.73,1.71095882]
[1693556947264,0.07641799,213.96,211.73,1.71095882]
[1693556949869,0.07641799,213.93,211.73,1.71095882]
[1693556952067,0.07641799,213.94,211.73,1.71095882]
[1693556952968,0.07641799,213.94,211.74,0.17157465]
[1693556953174,0.07641799,213.94,211.75,0.17157465]
[1693556953375,0.07641799,213.94,211.76,0.17157465]
[1693556953575,0.07641799,213.94,211.77,0.17157465]
[1693556953770,0.07641799,213.94,211.7,1.71095882]
[1693556957777,0.07641799,213.94,211.71,1.88253347]
[1693556957978,0.07641799,213.94,211.72,0.17157465]
[1693556958177,0.07641799,213.94,211.73,0.17157465]
[1693556958377,0.07641799,213.94,211.71,1.71095882]
[1693556963084,0.07641799,213.93,211.71,1.71095882]
[1693556964684,0.0765577,213.93,211.71,1.71095882]
[1693556978994,0.0765577,213.92,211.71,1.71095882]
[1693556979994,0.0765577,213.91,211.71,1.71095882]
[1693556980391,0.0765577,213.92,211.71,1.71095882]
[1693556980790,0.0765577,213.92,211.72,0.17157465]
[1693556981096,0.0765577,213.91,211.73,0.17157465]
[1693556981295,0.0765577,213.91,211.74,0.17157465]
[1693556981490,0.0765577,213.92,211.75,0.17157465]
[1693556981790,0.0765577,213.92,211.76,0.17157465]
[1693556981990,0.0765577,213.92,211.7,1.71095882]
[1693556981991,0.0765577,213.91,211.77,0.17157465]
[1693556982296,0.0765577,213.91,211.78,0.17157465]
[1693556982490,0.0765577,213.91,211.7,1.71095882]
[1693556985196,0.0765577,213.83,211.71,0.17157465]
[1693556985392,0.0765577,213.83,211.72,0.17157465]
[1693556985597,0.0765577,213.83,211.73,0.17157465]
[1693556985896,0.0765577,213.86,211.74,0.17157465]
[1693556986093,0.0765577,213.86,211.75,0.17157465]
[1693556986294,0.0765577,213.86,211.76,0.17157465]
[1693556986493,0.0765577,213.86,211.65,1.71095882]
[1693556987091,0.0765577,213.88,211.65,1.71095882]
[1693556987898,0.0765577,213.89,211.65,1.71095882]
[1693556989092,0.0765577,213.88,211.65,1.71095882]
[1693556989596,0.0765577,213.88,211.66,0.17157465]
[1693556989798,0.0765577,213.88,211.63,1.71095882]
[1693556990097,0.0765577,213.87,211.63,1.71095882]
[1693556991992,0.0765577,213.86,211.63,1.71095882]
[1693556992991,0.0765577,213.85,211.63,1.71095882]
[1693556993595,0.0765577,213.86,211.63,1.71095882]
[1693556993995,0.1531154,213.88,211.63,1.71095882]
[1693556993996,0.0765577,213.85,211.63,1.71095882]
[1693556995199,0.0765577,213.84,211.63,1.71095882]
[1693556995400,0.0765577,213.85,211.63,1.71095882]
[1693556995897,0.0765577,213.84,211.63,1.71095882]
[1693557000208,0.0765577,213.83,211.63,1.71095882]
[1693557001208,0.0765577,213.84,211.63,1.71095882]
[1693557001507,0.0765577,213.83,211.63,1.71095882]
[1693557004306,0.0765577,213.87,211.63,1.71095882]
[1693557004508,0.0765577,213.88,211.63,1.71095882]
[1693557007707,0.0765577,213.88,211.68,1.71095882]
[1693557009904,0.0765577,213.89,211.68,1.71095882]
[1693557010104,0.0765577,213.88,211.68,1.71095882]
[1693557013314,0.0765577,213.87,211.68,1.71095882]
[1693557015916,0.0765577,213.88,211.68,1.71095882]
[1693557016216,0.0765577,213.87,211.68,1.71095882]
[1693557016710,0.0765577,213.88,211.68,1.71095882]
[1693557017817,0.0765577,213.87,211.68,1.71095882]
[1693557018816,0.1531154,213.9,211.68,1.71095882]
[1693557018817,0.0765577,213.88,211.68,1.71095882]
[1693557019016,0.0765577,213.87,211.68,1.71095882]
[1693557019818,0.0765577,213.88,211.68,1.71095882]
[1693557020017,0.0765577,213.87,211.68,1.71095882]
[1693557020718,0.0765577,213.88,211.68,1.71095882]
[1693557025823,0.0765577,213.89,211.68,1.71095882]
[1693557026023,0.0765577,213.88,211.68,1.71095882]
[1693557026524,0.0765577,213.89,211.68,1.71095882]
[1693557027225,0.0765577,213.88,211.68,1.71095882]
[1693557028826,0.0765577,213.89,211.68,1.71095882]
[1693557029022,0.0765577,213.88,211.68,1.71095882]
[1693557029725,0.0765577,213.89,211.68,1.71095882]
[1693557030027,0.0765577,213.88,211.68,1.71095882]
[1693557030727,0.0765577,213.89,211.68,1.71095882]
[1693557030928,0.0765577,213.88,211.68,1.71095882]
[1693557035029,0.0765577,213.87,211.68,1.71095882]
[1693557037136,0.0765577,213.88,211.68,1.71095882]
[1693557037330,0.0765577,213.87,211.68,1.71095882]
[1693557038734,0.0765577,213.86,211.68,1.71095882]
[1693557041840,0.0765577,213.87,211.68,1.71095882]
[1693557043740,0.0765577,213.88,211.68,1.71095882]
[1693557044235,0.0765577,213.88,211.69,1.71095882]
[1693557060950,0.0765577,213.88,211.7,0.17157465]
[1693557061153,0.0765577,213.88,211.71,0.17157465]
[1693557061356,0.0765577,213.88,211.72,0.17157465]
[1693557061651,0.0765577,213.88,211.73,0.17157465]
[1693557061856,0.0765577,213.88,211.74,0.17157465]
[1693557062056,0.0765577,213.88,211.75,0.17157465]
[1693557062356,0.0765577,213.88,211.76,0.17157465]
[1693557062556,0.0765577,213.88,211.77,0.17157465]
[1693557062754,0.0765577,213.88,211.78,0.17157465]
[1693557062955,0.0765577,213.88,211.79,0.17157465]
[1693557063151,0.0765577,213.88,211.8,0.17157465]
[1693557063455,0.0765577,213.88,211.81,0.17157465]
[1693557063656,0.0765577,213.88,211.82,0.17157465]
[1693557063856,0.0765577,213.88,211.83,0.17157465]
[1693557064051,0.0765577,213.88,211.84,0.17157465]
[1693557064256,0.0765577,213.88,211.85,0.17157465]
[1693557064451,0.0765577,213.88,211.68,1.71095882]
[1693557072362,0.0765577,213.88,211.69,1.71095882]
[1693557075971,0.0765577,213.89,211.69,1.71095882]
[1693557077070,0.0765577,213.88,211.69,1.71095882]
[1693557077265,0.0765577,213.89,211.69,1.71095882]
[1693557094384,2.5519234,214.02,211.69,1.71095882]
[1693557094591,0.07664508,213.89,211.69,1.71095882]
[1693557096793,0.07664508,213.88,211.69,1.71095882]
[1693557102094,0.07664508,213.88,211.7,0.17157465]
[1693557102295,0.07664508,213.88,211.71,0.17157465]
[1693557102596,0.07664508,213.88,211.72,0.17157465]
[1693557102798,0.07664508,213.88,211.73,0.17157465]
[1693557103098,0.07664508,213.88,211.74,0.17157465]
[1693557103298,0.07664508,213.88,211.75,0.17157465]
[1693557103599,0.07664508,213.88,211.76,0.17157465]
[1693557103799,0.07664508,213.88,211.77,0.17157465]
[1693557103995,0.07664508,213.88,211.78,0.17157465]
[1693557104198,0.07664508,213.88,211.79,0.17157465]
[1693557104398,0.07664508,213.88,211.8,0.17157465]
[1693557104599,0.07664508,213.88,211.81,0.17157465]
[1693557104799,0.07664508,213.88,211.68,1.71095882]
[1693557104800,0.07664508,213.88,211.82,0.17157465]
[1693557104995,0.07664508,213.88,211.83,0.17157465]
[1693557105195,0.07664508,213.88,211.84,0.17157465]
[1693557105501,0.07664508,213.88,211.85,0.17157465]
[1693557105801,0.07664508,213.88,211.86,0.17157465]
[1693557106003,0.07664508,213.88,211.87,0.17157465]
[1693557106302,0.07664508,213.88,211.88,0.17157465]
[1693557106499,0.07664508,213.88,211.89,0.17157465]
[1693557106800,0.07664508,213.88,211.9,0.17157465]
[1693557107002,0.07664508,213.88,211.91,0.17157465]
[1693557107202,0.07664508,213.88,211.92,0.17157465]
[1693557107397,0.07664508,213.88,211.93,0.17157465]
[1693557107602,0.07664508,213.88,211.94,0.17157465]
[1693557107802,0.07664508,213.88,211.95,0.17157465]
[1693557108100,0.07664508,213.88,211.96,0.17157465]
[1693557108297,0.07664508,213.88,211.68,1.71095882]
[1693557111904,0.07664508,213.89,211.68,1.71095882]
[1693557112806,0.07664508,213.89,211.69,1.88253347]
[1693557113006,0.07664508,213.89,211.7,0.17157465]
[1693557113206,0.07664508,213.89,211.71,0.17157465]
[1693557113403,0.07664508,213.89,211.72,0.17157465]
[1693557113601,0.07664508,213.89,211.73,0.17157465]
[1693557113804,0.07664508,213.89,211.74,0.17157465]
[1693557114005,0.07664508,213.89,211.75,0.17157465]
[1693557114205,0.07664508,213.89,211.76,0.17157465]
[1693557114408,0.07664508,213.89,211.77,0.17157465]
[1693557114607,0.07664508,213.89,211.78,0.17157465]
[1693557114907,0.07664508,213.89,211.79,0.17157465]
[1693557115108,0.07664508,213.89,211.69,1.71095882]
[1693557116210,0.07664508,213.9,211.69,1.71095882]
[1693557120408,0.07664508,213.9,211.7,1.71095882]
[1693557124713,0.07664508,213.9,211.71,0.17157465]
[1693557124914,0.07664508,213.9,211.69,1.71095882]
[1693557129909,0.07664508,213.91,211.69,1.71095882]
[1693557131710,0.07664508,213.92,211.69,1.71095882]
[1693557132214,0.07664508,213.91,211.69,1.71095882]
[1693557133416,0.07664508,213.91,211.7,1.71095882]
[1693557133616,0.07664508,213.92,211.7,1.71095882]
[1693557138116,0.07664508,213.92,211.71,1.88253347]
[1693557138314,0.07664508,213.92,211.72,0.17157465]
[1693557138517,0.07664508,213.92,211.73,0.17157465]
[1693557138816,0.07664508,213.92,211.74,0.17157465]
[1693557139013,0.07664508,213.92,211.75,0.17157465]
[1693557139214,0.07664508,213.92,211.76,0.17157465]
[1693557139416,0.07664508,213.92,211.77,0.17157465]
[1693557139618,0.07664508,213.92,211.71,1.71095882]
[1693557142415,0.51096725,213.97,211.71,1.71095882]
[1693557142416,0.07664508,213.93,211.71,1.71095882]
[1693557142621,0.07664508,213.92,211.71,1.71095882]
[1693557148919,0.07664508,213.98,211.71,1.71095882]
[1693557149223,0.07664508,213.99,211.71,1.71095882]
[1693557149624,0.07664508,214.01,211.71,1.71095882]
[1693557150626,0.07664508,214.03,211.71,1.71095882]
[1693557151026,0.07664508,214.02,211.71,1.71095882]
[1693557151622,0.07664508,214.03,211.71,1.71095882]
[1693557152523,0.07664508,214.02,211.71,1.71095882]
[1693557153025,0.07664508,214.02,211.78,1.71095882]
[1693557153623,0.07664508,214.01,211.78,1.71095882]
[1693557154528,0.07664508,214.0,211.78,1.71095882]
[1693557155624,0.07664508,213.99,211.78,1.71095882]
[1693557157230,0.07664508,213.95,211.78,1.71095882]
[1693557157431,0.07664508,213.94,211.78,1.71095882]
[1693557157630,0.07664508,213.93,211.78,1.71095882]
[1693557158128,0.07664508,213.93,211.71,1.71095882]
[1693557166638,0.07664508,213.94,211.71,1.71095882]
[1693557170439,0.07664508,213.95,211.71,1.71095882]
[1693557172446,0.07664508,213.95,211.72,1.88253347]
[1693557172646,0.07664508,213.96,211.73,0.17157465]
[1693557172839,0.07664508,213.96,211.72,1.71095882]
[1693557173245,0.07664508,213.95,211.72,1.71095882]
[1693557173645,0.07664508,213.96,211.72,1.71095882]
[1693557181155,0.07639272,213.97,211.72,1.71095882]
[1693557186558,0.07639272,213.96,211.72,1.71095882]
[1693557186759,0.07639272,213.96,211.73,1.88253347]
[1693557186954,0.07639272,213.96,211.74,0.17157465]
[1693557187158,0.07639272,213.96,211.73,1.71095882]
[1693557187458,4.26673392,214.34,211.73,1.71095882]
[1693557187657,0.07642935,213.96,211.73,1.71095882]
[1693557188661,0.07642935,213.95,211.73,1.71095882]
[1693557190662,0.07642935,213.94,211.73,1.71095882]
[1693557191464,0.07642935,213.93,211.73,1.71095882]
[1693557191964,0.07642935,213.92,211.73,1.71095882]
[1693557192962,0.07642935,213.93,211.73,1.71095882]
[1693557195567,0.07642935,213.93,211.74,0.17157465]
[1693557195768,0.07642935,213.93,211.72,1.71095882]
[1693557199570,0.07642935,213.92,211.72,1.71095882]